[Event "12th Asrian Memorial 2019"]
[Site "Yerevan"]
[Date "2019.06.11"]
[Round "1.5"]
[White "Kulaots, Kaido"]
[Black "Arakelyan, Nare"]
[Result "1-0"]
[ECO "B92"]
[WhiteElo "2574"]
[BlackElo "1927"]
[Annotator "ChessBase"]
[PlyCount "51"]
[EventDate "2019.06.11"]
[EventType "swiss"]
[EventCountry "ARM"]
[SourceTitle "playchess.com"]
[Source "ChessBase"]
[SourceQuality "1"]
[TimeControl "40/5400+30:1800+30"]

1. e4 {[%emt 0:00:00]} c5 {[%emt 0:00:00]} 2. Nf3 {[%emt 0:00:00]} d6 {[%emt 0:00:00]} 3. d4 {[%emt 0:00:20]} cxd4 {[%emt 0:00:08]} 4. Nxd4 {[%emt 0:00:06]} Nf6 {[%emt 0:00:03]} 5. Nc3 {[%emt 0:00:15]} a6 {[%emt 0:00:14]} 6. Be2 {[%emt 0:00:37]} e5 {[%emt 0:00:49]} 7. Nf3 {[%emt 0:01:36]} Be7 {[%emt 0:01:31]} 8. Bg5 {[%emt 0:02:06]} Be6 {[%emt 0:02:49]} 9. Bxf6 {[%emt 0:07:36]} Bxf6 {[%emt 0:02:00]} 10. Nd5 {[%emt 0:01:28]} Nd7 {[%emt 0:06:40]} 11. O-O {[%emt 0:07:56]} O-O {[%emt 0:01:57]} 12. a4 {[%emt 0:05:25]} Rc8 {[%emt 0:04:17]} 13. c3 {[%emt 0:10:23]} Be7 {[%emt 0:09:32]} 14. Ne1 {[%emt 0:15:06]} Nc5 {[%emt 0:05:22]} 15. Bf3 {[%emt 0:03:13]} Bxd5 {[%emt 0:05:28]} 16. Qxd5 {[%emt 0:00:26]} Qb6 {[%emt 0:00:46]} 17. Bg4 {[%emt 0:12:55]} Qxb2 {[%emt 0:24:21]} 18. Ra2 {[%emt 0:02:23]} Qxc3 {[%emt 0:00:05]} 19. Bxc8 {[%emt 0:00:14]} Rxc8 {[%emt 0:00:01]} 20. Nc2 {[%emt 0:07:57]} Rc6 {[%emt 0:04:55]} 21. Ne3 {[%emt 0:01:56]} Qb4 {[%emt 0:03:26]} 22. Rc2 {[%emt 0:12:10]} Qxa4 {[%emt 0:04:17]} 23. Rb1 {[%emt 0:00:30]} Qxe4 {[%emt 0:09:13]} 24. Rxb7 {[%emt 0:00:41]} Qxd5 {[%emt 0:01:57]} 25. Rb8+ {[%emt 0:00:20]} Bf8 {[%emt 0:00:11]} 26. Nxd5 {[%emt 0:00:06]} 1-0

[Event "12th Asrian Memorial 2019"]
[Site "Yerevan"]
[Date "2019.06.11"]
[Round "1.6"]
[White "Sahakyan, Aleks"]
[Black "Harutyunian, Tigran K."]
[Result "0-1"]
[ECO "C85"]
[WhiteElo "1887"]
[BlackElo "2552"]
[Annotator "ChessBase"]
[PlyCount "103"]
[EventDate "2019.06.11"]
[EventType "swiss"]
[EventCountry "ARM"]
[SourceTitle "playchess.com"]
[Source "ChessBase"]
[SourceQuality "1"]
[TimeControl "40/5400+30:1800+30"]

1. e4 {[%emt 0:00:00]} e5 {[%emt 0:00:10]} 2. Nf3 {[%emt 0:00:00]} Nc6 {[%emt 0:00:09]} 3. Bb5 {[%emt 0:00:00]} a6 {[%emt 0:01:03]} 4. Ba4 {[%emt 0:00:00]} Nf6 {[%emt 0:00:09]} 5. O-O {[%emt 0:00:00]} Be7 {[%emt 0:02:40]} 6. Bxc6 {[%emt 0:00:39]} dxc6 {[%emt 0:01:06]} 7. d3 {[%emt 0:00:08]} Nd7 {[%emt 0:02:35]} 8. Nbd2 {[%emt 0:00:43]} c5 {[%emt 0:13:29]} 9. Nc4 {[%emt 0:00:37]} f6 {[%emt 0:00:31]} 10. Nh4 {[%emt 0:02:23]} O-O {[%emt 0:01:46]} 11. f4 {[%emt 0:07:34]} b5 {[%emt 0:08:46]} 12. Na5 {[%emt 0:02:30]} Bd6 {[%emt 0:00:36]} 13. f5 {[%emt 0:10:33]} c6 {[%emt 0:05:19]} 14. Bd2 {[%emt 0:02:32]} Nb8 {[%emt 0:21:41]} 15. a3 {[%emt 0:15:42]} Bc7 {[%emt 0:02:01]} 16. b4 {[%emt 0:00:06]} c4 {[%emt 0:02:55]} 17. Rf3 {[%emt 0:02:03]} c5 {[%emt 0:00:44]} 18. dxc4 {[%emt 0:02:43]} Qd4+ {[%emt 0:08:10]} 19. Be3 {[%emt 0:04:42]} Qxe4 {[%emt 0:00:36]} 20. Bxc5 {[%emt 0:00:15]} Rd8 {[%emt 0:01:37]} 21. Rd3 {[%emt 0:02:07]} Nd7 {[%emt 0:04:36]} 22. Qh5 {[%emt 0:08:31]} Bxa5 {[%emt 0:01:49]} 23. bxa5 {[%emt 0:00:31]} Bb7 {[%emt 0:02:36]} 24. Be7 {[%emt 0:02:47]} bxc4 {[%emt 0:02:24]} 25. Rd6 {[%emt 0:00:21]} Re8 {[%emt 0:01:29]} 26. Rxd7 {[%emt 0:00:15]} Bc6 {[%emt 0:00:34]} 27. Rd6 {[%emt 0:09:50]} Rxe7 {[%emt 0:00:15]} 28. Rad1 {[%emt 0:00:49]} Rf8 {[%emt 0:01:12]} 29. Rxc6 {[%emt 0:01:49]} Qxc6 {[%emt 0:00:44]} 30. Ng6 {[%emt 0:00:35]} Qc5+ {[%emt 0:02:44]} 31. Kh1 {[%emt 0:00:36]} Rb8 {[%emt 0:00:37]} 32. Nxe7+ {[%emt 0:00:28]} Qxe7 {[%emt 0:00:08]} 33. h3 {[%emt 0:02:13]} Qxa3 {[%emt 0:00:50]} 34. Qg4 {[%emt 0:01:53]} Qa4 {[%emt 0:02:02]} 35. Rd6 {[%emt 0:02:23]} Qxc2 {[%emt 0:01:18]} 36. Rc6 {[%emt 0:02:01]} h5 {[%emt 0:01:35]} 37. Qf3 {[%emt 0:01:35]} Rb1+ {[%emt 0:03:35]} 38. Kh2 {[%emt 0:00:02]} Qd1 {[%emt 0:00:08]} 39. Qxd1 {[%emt 0:03:59]} Rxd1 {[%emt 0:00:02]} 40. Rxa6 {[%emt 0:00:00]} Ra1 {[%emt 0:00:00]} 41. Rc6 {[%emt 0:00:34]} Kh7 {[%emt 0:03:13]} 42. Rxc4 {[%emt 0:00:47]} Rxa5 {[%emt 0:00:06]} 43. h4 {[%emt 0:00:25]} Ra1 {[%emt 0:02:48]} 44. g4 {[%emt 0:03:34]} hxg4 {[%emt 0:01:45]} 45. Kg2 {[%emt 0:00:16]} Rd1 {[%emt 0:02:11]} 46. Kg3 {[%emt 0:01:58]} Rd4 {[%emt 0:01:12]} 47. Rc7 {[%emt 0:00:20]} Rf4 {[%emt 0:00:15]} 48. Re7 {[%emt 0:00:10]} Kh6 {[%emt 0:00:49]} 49. Re8 {[%emt 0:00:46]} Rxf5 {[%emt 0:00:09]} 50. Kxg4 {[%emt 0:00:06]} Rf4+ {[%emt 0:00:06]} 51. Kg3 {[%emt 0:00:02]} Kh7 52. Kh2 0-1

[Event "12th Asrian Memorial 2019"]
[Site "Yerevan"]
[Date "2019.06.11"]
[Round "1.7"]
[White "Vaganian, Rafael A"]
[Black "Karamyan, Vardan"]
[Result "1/2-1/2"]
[ECO "D15"]
[WhiteElo "2526"]
[BlackElo "1877"]
[Annotator "ChessBase"]
[PlyCount "74"]
[EventDate "2019.06.11"]
[EventType "swiss"]
[EventCountry "ARM"]
[SourceTitle "playchess.com"]
[Source "ChessBase"]
[SourceQuality "1"]
[TimeControl "40/5400+30:1800+30"]

1. d4 {[%emt 0:00:00]} d5 {[%emt 0:00:00]} 2. c4 {[%emt 0:00:00]} c6 {[%emt 0:00:01]} 3. Nf3 {[%emt 0:00:02]} Nf6 {[%emt 0:00:21]} 4. Nc3 {[%emt 0:00:29]} a6 {[%emt 0:01:43]} 5. c5 {[%emt 0:01:36]} Nbd7 {[%emt 0:01:36]} 6. Bf4 {[%emt 0:03:25]} g6 {[%emt 0:00:44]} 7. h3 {[%emt 0:00:52]} Bg7 {[%emt 0:00:14]} 8. e3 {[%emt 0:00:04]} O-O {[%emt 0:00:25]} 9. Be2 {[%emt 0:01:40]} Ne8 {[%emt 0:02:59]} 10. O-O {[%emt 0:02:02]} Nc7 {[%emt 0:02:00]} 11. b4 {[%emt 0:03:29]} Re8 {[%emt 0:08:06]} 12. Qd2 {[%emt 0:06:04]} e5 {[%emt 0:06:27]} 13. Nxe5 {[%emt 0:00:18]} Nxe5 {[%emt 0:00:07]} 14. Bxe5 {[%emt 0:00:06]} Bxe5 {[%emt 0:00:08]} 15. dxe5 {[%emt 0:00:05]} a5 {[%emt 0:01:01]} 16. a3 {[%emt 0:00:17]} axb4 {[%emt 0:00:44]} 17. axb4 {[%emt 0:00:03]} Rxa1 {[%emt 0:00:05]} 18. Rxa1 {[%emt 0:00:04]} Rxe5 {[%emt 0:00:26]} 19. b5 {[%emt 0:07:44]} Re8 {[%emt 0:21:21]} 20. Ra7 {[%emt 0:04:07]} Ne6 {[%emt 0:05:13]} 21. Na4 {[%emt 0:00:15]} Nxc5 {[%emt 0:27:47]} 22. Nxc5 {[%emt 0:15:53]} Qb6 {[%emt 0:02:33]} 23. Ra5 {[%emt 0:00:21]} Qxc5 {[%emt 0:00:26]} 24. bxc6 {[%emt 0:00:04]} Qb6 {[%emt 0:02:33]} 25. Rxd5 {[%emt 0:01:03]} bxc6 {[%emt 0:00:38]} 26. Rd6 {[%emt 0:00:04]} Be6 {[%emt 0:04:43]} 27. Bf3 {[%emt 0:06:31]} Qb1+ {[%emt 0:01:53]} 28. Kh2 {[%emt 0:00:56]} c5 {[%emt 0:00:23]} 29. Rc6 {[%emt 0:00:05]} Qb8+ {[%emt 0:03:47]} 30. g3 {[%emt 0:03:26]} Qe5 {[%emt 0:00:36]} 31. Bg2 {[%emt 0:00:26]} c4 {[%emt 0:01:42]} 32. f4 {[%emt 0:00:32]} Qb8 {[%emt 0:01:42]} 33. g4 {[%emt 0:09:39]} Rc8 {[%emt 0:00:54]} 34. Rxc8+ {[%emt 0:01:08]} Qxc8 {[%emt 0:00:12]} 35. Qc3 {[%emt 0:00:02]} Qb8 {[%emt 0:01:29]} 36. Qf6 {[%emt 0:00:16]} Qc7 {[%emt 0:00:27]} 37. Qc3 {[%emt 0:00:32]} Qc8 1/2-1/2

[Event "12th Asrian Memorial 2019"]
[Site "Yerevan"]
[Date "2019.06.11"]
[Round "1.8"]
[White "Khudoyan, Artur"]
[Black "Sargsyan, Shant"]
[Result "0-1"]
[ECO "B28"]
[WhiteElo "1874"]
[BlackElo "2512"]
[Annotator "ChessBase"]
[PlyCount "50"]
[EventDate "2019.06.11"]
[EventType "swiss"]
[EventCountry "ARM"]
[SourceTitle "playchess.com"]
[Source "ChessBase"]
[SourceQuality "1"]
[TimeControl "40/5400+30:1800+30"]

1. e4 {[%emt 0:00:00]} c5 {[%emt 0:00:27]} 2. Nf3 {[%emt 0:00:00]} a6 {[%emt 0:00:42]} 3. c3 {[%emt 0:00:08]} d5 {[%emt 0:00:40]} 4. exd5 {[%emt 0:01:02]} Qxd5 {[%emt 0:00:17]} 5. d4 {[%emt 0:01:17]} Bg4 {[%emt 0:00:49]} 6. Be2 {[%emt 0:00:39]} e6 {[%emt 0:00:40]} 7. O-O {[%emt 0:01:33]} Nf6 {[%emt 0:00:34]} 8. c4 {[%emt 0:10:31]} Qd8 {[%emt 0:03:25]} 9. Qa4+ {[%emt 0:04:32]} Qd7 {[%emt 0:06:17]} 10. Qb3 {[%emt 0:01:49]} Nc6 {[%emt 0:04:56]} 11. d5 {[%emt 0:30:59]} exd5 {[%emt 0:05:37]} 12. cxd5 {[%emt 0:00:07]} Nxd5 {[%emt 0:02:38]} 13. Rd1 {[%emt 0:01:00]} O-O-O {[%emt 0:02:03]} 14. Nc3 {[%emt 0:01:55]} Nxc3 {[%emt 0:02:47]} 15. Qxc3 {[%emt 0:06:46]} Qxd1+ {[%emt 0:00:25]} 16. Bxd1 {[%emt 0:00:12]} Rxd1+ {[%emt 0:00:05]} 17. Ne1 {[%emt 0:00:08]} Bd6 {[%emt 0:00:12]} 18. f3 {[%emt 0:15:04]} Re8 {[%emt 0:01:08]} 19. Kf2 {[%emt 0:01:38]} Rdxe1 {[%emt 0:01:18]} 20. Qxe1 {[%emt 0:00:10]} Rxe1 {[%emt 0:00:03]} 21. Kxe1 {[%emt 0:00:10]} Be6 {[%emt 0:00:08]} 22. Be3 {[%emt 0:00:33]} Nb4 {[%emt 0:00:41]} 23. Rd1 {[%emt 0:00:26]} Nc2+ {[%emt 0:00:51]} 24. Kf2 {[%emt 0:00:14]} Nxe3 {[%emt 0:00:05]} 25. Rxd6 {[%emt 0:00:22]} Nd5 {[%emt 0:00:06]} 0-1

[Event "12th Asrian Memorial 2019"]
[Site "Yerevan"]
[Date "2019.06.11"]
[Round "1.9"]
[White "Babujian, Levon"]
[Black "Matevosyan, Matevos"]
[Result "1-0"]
[ECO "A45"]
[WhiteElo "2485"]
[BlackElo "1874"]
[Annotator "ChessBase"]
[PlyCount "81"]
[EventDate "2019.06.11"]
[EventType "swiss"]
[EventCountry "ARM"]
[SourceTitle "playchess.com"]
[Source "ChessBase"]
[SourceQuality "1"]
[TimeControl "40/5400+30:1800+30"]

1. d4 {[%emt 0:00:00]} Nf6 {[%emt 0:00:00]} 2. Bg5 {[%emt 0:00:00]} Ne4 {[%emt 0:00:00]} 3. Bf4 {[%emt 0:00:00]} d5 {[%emt 0:00:07]} 4. f3 {[%emt 0:00:00]} Nf6 {[%emt 0:01:25]} 5. Nc3 {[%emt 0:00:02]} c5 {[%emt 0:02:53]} 6. e3 {[%emt 0:01:01]} e6 {[%emt 0:02:54]} 7. Nge2 {[%emt 0:02:29]} Be7 {[%emt 0:17:35]} 8. Qd2 {[%emt 0:01:02]} Nh5 {[%emt 0:10:07]} 9. Be5 {[%emt 0:03:06]} Nc6 {[%emt 0:08:15]} 10. g4 {[%emt 0:00:55]} Bh4+ {[%emt 0:00:45]} 11. Bg3 {[%emt 0:01:21]} cxd4 {[%emt 0:04:16]} 12. exd4 {[%emt 0:00:35]} Nxg3 {[%emt 0:01:41]} 13. hxg3 {[%emt 0:00:06]} Bf6 {[%emt 0:00:41]} 14. f4 {[%emt 0:00:06]} g5 {[%emt 0:02:49]} 15. O-O-O {[%emt 0:00:20]} gxf4 {[%emt 0:12:29]} 16. gxf4 {[%emt 0:00:46]} Qb6 {[%emt 0:05:22]} 17. g5 {[%emt 0:00:54]} Be7 {[%emt 0:04:28]} 18. Qd3 {[%emt 0:00:16]} Nb4 {[%emt 0:01:13]} 19. Qe3 {[%emt 0:00:09]} Bd7 {[%emt 0:01:07]} 20. Bg2 {[%emt 0:03:39]} O-O-O {[%emt 0:06:05]} 21. a3 {[%emt 0:02:45]} Nc6 {[%emt 0:01:14]} 22. Bxd5 {[%emt 0:07:07]} exd5 {[%emt 0:01:13]} 23. Nxd5 {[%emt 0:00:05]} Qa6 {[%emt 0:02:06]} 24. Nxe7+ {[%emt 0:00:14]} Nxe7 {[%emt 0:00:21]} 25. Qxe7 {[%emt 0:00:06]} Bc6 {[%emt 0:05:37]} 26. d5 {[%emt 0:02:05]} Bxd5 {[%emt 0:01:04]} 27. Qc5+ {[%emt 0:00:48]} Bc6 {[%emt 0:00:11]} 28. Nd4 {[%emt 0:00:15]} Rd5 {[%emt 0:01:41]} 29. Qc3 {[%emt 0:00:13]} Rhd8 {[%emt 0:00:35]} 30. Rhe1 {[%emt 0:01:11]} Qb6 {[%emt 0:04:44]} 31. Nxc6 {[%emt 0:00:55]} Rxd1+ {[%emt 0:00:07]} 32. Rxd1 {[%emt 0:00:03]} bxc6 {[%emt 0:02:01]} 33. Re1 {[%emt 0:00:14]} Kb7 {[%emt 0:00:47]} 34. Kb1 {[%emt 0:00:07]} Qc7 {[%emt 0:00:18]} 35. Qb4+ {[%emt 0:00:08]} Kc8 {[%emt 0:00:24]} 36. Re5 {[%emt 0:00:56]} f6 {[%emt 0:00:31]} 37. gxf6 {[%emt 0:00:26]} Rd1+ {[%emt 0:00:05]} 38. Ka2 {[%emt 0:00:03]} Qf7+ {[%emt 0:00:09]} 39. Qb3 {[%emt 0:00:53]} Qxf6 {[%emt 0:00:14]} 40. Re6 {[%emt 0:00:00]} Qg7 {[%emt 0:00:00]} 41. Rxc6+ {[%emt 0:00:34]} 1-0

[Event "12th Asrian Memorial 2019"]
[Site "Yerevan"]
[Date "2019.06.11"]
[Round "1.10"]
[White "Khachatryan, Veronika"]
[Black "Kotanjian, Tigran"]
[Result "1/2-1/2"]
[ECO "D00"]
[WhiteElo "1868"]
[BlackElo "2462"]
[Annotator "ChessBase"]
[PlyCount "162"]
[EventDate "2019.06.11"]
[EventType "swiss"]
[EventCountry "ARM"]
[SourceTitle "playchess.com"]
[Source "ChessBase"]
[SourceQuality "1"]
[TimeControl "40/5400+30:1800+30"]

1. d4 {[%emt 0:00:00]} d5 {[%emt 0:00:00]} 2. Bf4 {[%emt 0:00:00]} Nf6 {[%emt 0:00:00]} 3. e3 {[%emt 0:00:00]} c5 {[%emt 0:00:04]} 4. Nf3 {[%emt 0:00:39]} Nc6 {[%emt 0:00:08]} 5. Nbd2 {[%emt 0:00:10]} cxd4 {[%emt 0:00:27]} 6. exd4 {[%emt 0:00:23]} Bg4 {[%emt 0:00:32]} 7. c3 {[%emt 0:01:02]} e6 {[%emt 0:00:07]} 8. Qb3 {[%emt 0:08:11]} Qc8 {[%emt 0:00:43]} 9. Bb5 {[%emt 0:12:14]} Bxf3 {[%emt 0:02:34]} 10. Nxf3 {[%emt 0:00:16]} Be7 {[%emt 0:00:17]} 11. O-O {[%emt 0:02:01]} O-O {[%emt 0:00:06]} 12. Qd1 {[%emt 0:19:51]} a6 {[%emt 0:00:06]} 13. Bd3 {[%emt 0:00:16]} b5 {[%emt 0:00:06]} 14. a3 {[%emt 0:01:14]} Qb7 {[%emt 0:00:09]} 15. Qe2 {[%emt 0:00:53]} Rfc8 {[%emt 0:01:28]} 16. Rfe1 {[%emt 0:03:39]} Bf8 {[%emt 0:00:18]} 17. Be5 {[%emt 0:06:27]} Qe7 {[%emt 0:02:12]} 18. Bf4 {[%emt 0:07:22]} g6 {[%emt 0:01:05]} 19. Bg5 {[%emt 0:01:44]} Bg7 {[%emt 0:00:17]} 20. Ne5 {[%emt 0:00:19]} Qb7 {[%emt 0:01:14]} 21. f4 {[%emt 0:05:17]} Na5 {[%emt 0:00:07]} 22. Rad1 {[%emt 0:19:58]} Nc4 {[%emt 0:00:15]} 23. Bxc4 {[%emt 0:02:00]} bxc4 {[%emt 0:01:02]} 24. Bxf6 {[%emt 0:00:10]} Bxf6 {[%emt 0:00:09]} 25. Rd2 {[%emt 0:00:35]} Bg7 {[%emt 0:00:47]} 26. Qg4 {[%emt 0:01:34]} Qe7 {[%emt 0:00:57]} 27. Qf3 {[%emt 0:01:05]} Rab8 {[%emt 0:00:17]} 28. Ree2 {[%emt 0:00:26]} Rb6 {[%emt 0:00:40]} 29. Ng4 {[%emt 0:01:45]} Qd8 {[%emt 0:02:11]} 30. Ne5 {[%emt 0:00:56]} Rcb8 {[%emt 0:00:19]} 31. g3 {[%emt 0:00:43]} R8b7 {[%emt 0:00:19]} 32. Kg2 {[%emt 0:00:10]} Qf6 {[%emt 0:02:05]} 33. Ng4 {[%emt 0:01:14]} Qf5 {[%emt 0:00:32]} 34. Ne3 {[%emt 0:00:22]} Qb1 {[%emt 0:00:18]} 35. Qf2 {[%emt 0:01:22]} f5 {[%emt 0:01:56]} 36. Rc2 {[%emt 0:00:50]} Bf6 {[%emt 0:00:45]} 37. Re1 {[%emt 0:01:20]} Qa2 {[%emt 0:00:14]} 38. Nd1 {[%emt 0:00:13]} Rg7 {[%emt 0:02:20]} 39. Rce2 {[%emt 0:00:21]} Qb1 {[%emt 0:01:45]} 40. Qf3 {[%emt 0:00:00]} Re7 {[%emt 0:00:00]} 41. Qe3 {[%emt 0:08:04]} Qe4+ {[%emt 0:01:09]} 42. Qf3 {[%emt 0:01:24]} Qxf3+ {[%emt 0:00:09]} 43. Kxf3 {[%emt 0:00:01]} g5 {[%emt 0:00:32]} 44. Rd2 {[%emt 0:09:22]} Rg7 {[%emt 0:00:21]} 45. Ne3 {[%emt 0:00:34]} gxf4 {[%emt 0:00:29]} 46. gxf4 {[%emt 0:00:06]} Kf7 {[%emt 0:00:11]} 47. Rde2 {[%emt 0:03:44]} Rg6 {[%emt 0:00:42]} 48. Rd1 {[%emt 0:05:06]} Rh6 {[%emt 0:00:20]} 49. Rg1 {[%emt 0:00:38]} Rb8 {[%emt 0:00:21]} 50. Rg3 {[%emt 0:02:50]} Rg6 {[%emt 0:00:37]} 51. Ng2 {[%emt 0:01:38]} Rbg8 {[%emt 0:00:13]} 52. Ne3 {[%emt 0:00:31]} Be7 {[%emt 0:00:30]} 53. Nc2 {[%emt 0:00:48]} Bd6 {[%emt 0:00:50]} 54. Ne3 {[%emt 0:00:49]} R8g7 {[%emt 0:01:48]} 55. Reg2 {[%emt 0:01:54]} Ke7 {[%emt 0:00:12]} 56. Rg1 {[%emt 0:01:53]} Kd7 {[%emt 0:00:10]} 57. Rxg6 {[%emt 0:00:04]} hxg6 {[%emt 0:00:19]} 58. h4 {[%emt 0:00:28]} Rh7 {[%emt 0:00:32]} 59. Ng2 {[%emt 0:01:03]} Be7 {[%emt 0:01:21]} 60. Kg3 {[%emt 0:00:04]} Bd6 {[%emt 0:01:54]} 61. Ne1 {[%emt 0:00:43]} Kc6 {[%emt 0:00:28]} 62. Nf3 {[%emt 0:00:15]} Kb5 {[%emt 0:00:11]} 63. Re1 {[%emt 0:00:20]} Re7 {[%emt 0:00:10]} 64. Re2 {[%emt 0:01:26]} Ka4 {[%emt 0:00:05]} 65. Ng5 {[%emt 0:00:58]} Kb3 {[%emt 0:00:11]} 66. Kf3 {[%emt 0:00:13]} Ka2 {[%emt 0:02:16]} 67. Nxe6 {[%emt 0:00:41]} Kb1 {[%emt 0:00:11]} 68. Kg3 {[%emt 0:00:46]} a5 {[%emt 0:00:09]} 69. Kf3 {[%emt 0:00:14]} a4 {[%emt 0:00:32]} 70. Nc5 {[%emt 0:00:43]} Bxc5 {[%emt 0:01:11]} 71. dxc5 {[%emt 0:00:02]} Rc7 {[%emt 0:00:05]} 72. Ke3 {[%emt 0:00:32]} Rxc5 {[%emt 0:00:05]} 73. Kd4 {[%emt 0:00:06]} Rb5 {[%emt 0:00:06]} 74. Rg2 {[%emt 0:00:27]} Rxb2 {[%emt 0:00:17]} 75. Rg1+ {[%emt 0:00:39]} Ka2 {[%emt 0:00:24]} 76. Kxd5 {[%emt 0:00:16]} Rf2 {[%emt 0:00:24]} 77. Kxc4 {[%emt 0:00:51]} Rxf4+ {[%emt 0:00:09]} 78. Kb5 {[%emt 0:00:21]} Rg4 {[%emt 0:00:40]} 79. Rh1 {[%emt 0:00:43]} Kxa3 {[%emt 0:00:26]} 80. c4 {[%emt 0:00:15]} Rg2 {[%emt 0:00:20]} 81. Rh3+ {[%emt 0:00:19]} Kb2 {[%emt 0:00:12]} 1/2-1/2

[Event "12th Asrian Memorial 2019"]
[Site "Yerevan"]
[Date "2019.06.11"]
[Round "1.11"]
[White "Mikaelyan, Arman"]
[Black "Abgaryan, Harutyun V."]
[Result "1-0"]
[ECO "B23"]
[WhiteElo "2453"]
[BlackElo "1855"]
[Annotator "ChessBase"]
[PlyCount "49"]
[EventDate "2019.06.11"]
[EventType "swiss"]
[EventCountry "ARM"]
[SourceTitle "playchess.com"]
[Source "ChessBase"]
[SourceQuality "1"]
[TimeControl "40/5400+30:1800+30"]

1. e4 {[%emt 0:00:00]} c5 {[%emt 0:00:00]} 2. Nc3 {[%emt 0:00:00]} d6 {[%emt 0:00:00]} 3. f4 {[%emt 0:00:00]} Nc6 {[%emt 0:00:35]} 4. Nf3 {[%emt 0:00:00]} Nf6 {[%emt 0:03:09]} 5. Bb5 {[%emt 0:01:09]} e6 {[%emt 0:03:33]} 6. O-O {[%emt 0:03:35]} Be7 {[%emt 0:02:19]} 7. e5 {[%emt 0:01:38]} Nd7 {[%emt 0:13:56]} 8. Bxc6 {[%emt 0:01:00]} bxc6 {[%emt 0:00:05]} 9. exd6 {[%emt 0:00:41]} Bxd6 {[%emt 0:00:14]} 10. d3 {[%emt 0:00:57]} Qc7 {[%emt 0:02:19]} 11. Ne4 {[%emt 0:00:52]} h6 {[%emt 0:10:52]} 12. Qe1 {[%emt 0:03:53]} Bb7 {[%emt 0:06:57]} 13. Bd2 {[%emt 0:02:29]} O-O {[%emt 0:10:56]} 14. Ba5 {[%emt 0:02:53]} Nb6 {[%emt 0:01:16]} 15. Ne5 {[%emt 0:01:19]} Qe7 {[%emt 0:04:36]} 16. Qg3 {[%emt 0:01:17]} Nd5 {[%emt 0:02:45]} 17. c4 {[%emt 0:01:05]} Nf6 {[%emt 0:01:32]} 18. Nxd6 {[%emt 0:03:44]} Qxd6 {[%emt 0:00:10]} 19. Bc3 {[%emt 0:00:25]} Rad8 {[%emt 0:06:08]} 20. Rf3 {[%emt 0:01:42]} Qe7 {[%emt 0:03:37]} 21. Re1 {[%emt 0:01:00]} Qd6 {[%emt 0:04:29]} 22. Nd7 {[%emt 0:05:08]} Rxd7 {[%emt 0:02:30]} 23. Bxf6 {[%emt 0:00:07]} g6 {[%emt 0:00:46]} 24. Qh4 {[%emt 0:00:14]} Kh7 {[%emt 0:01:06]} 25. Qxh6+ {[%emt 0:00:08]} 1-0

[Event "12th Asrian Memorial 2019"]
[Site "Yerevan"]
[Date "2019.06.11"]
[Round "1.12"]
[White "Julhakyan, Vania"]
[Black "Hayrapetyan, Hovik"]
[Result "0-1"]
[ECO "A06"]
[WhiteElo "1842"]
[BlackElo "2449"]
[Annotator "NA"]
[PlyCount "70"]
[EventDate "2019.06.11"]
[EventType "swiss"]
[EventCountry "ARM"]
[SourceTitle "playchess.com"]
[Source "ChessBase"]
[SourceQuality "1"]
[TimeControl "40/5400+30:1800+30"]

1. Nf3 {[%emt 0:00:00]} d5 {[%emt 0:00:00]} 2. b3 {[%emt 0:00:10]} Nf6 {[%emt 0:00:11]} 3. Bb2 {[%emt 0:00:11]} e6 {[%emt 0:00:30]} 4. e3 {[%emt 0:00:31]} Bd6 {[%emt 0:00:22]} 5. c4 {[%emt 0:02:01]} O-O {[%emt 0:01:15]} 6. Be2 {[%emt 0:00:39]} Nbd7 {[%emt 0:00:12]} 7. O-O {[%emt 0:00:58]} c6 {[%emt 0:02:03]} 8. d3 {[%emt 0:01:16]} Qe7 {[%emt 0:00:36]} 9. Nbd2 {[%emt 0:01:11]} a5 {[%emt 0:02:37]} 10. a3 {[%emt 0:02:53]} b6 {[%emt 0:06:04]} 11. Re1 {[%emt 0:01:31]} Bb7 {[%emt 0:02:40]} 12. Qc2 {[%emt 0:02:53]} Rac8 {[%emt 0:04:47]} 13. h3 {[%emt 0:01:20]} e5 {[%emt 0:03:16]} 14. e4 {[%emt 0:01:12]} dxe4 {[%emt 0:05:35]} 15. dxe4 {[%emt 0:00:11]} g6 {[%emt 0:07:08]} 16. Bf1 {[%emt 0:03:12]} Nh5 {[%emt 0:01:52]} 17. g3 {[%emt 0:00:40]} f6 {[%emt 0:03:36]} 18. Bg2 {[%emt 0:10:50]} Rfd8 {[%emt 0:07:48]} 19. Nh4 {[%emt 0:01:13]} Nf8 {[%emt 0:04:12]} 20. Bf3 {[%emt 0:00:29]} Ng7 {[%emt 0:00:03]} 21. Nf1 {[%emt 0:05:15]} Nfe6 {[%emt 0:01:14]} 22. Red1 {[%emt 0:00:46]} Bc5 {[%emt 0:04:33]} 23. Bg4 {[%emt 0:06:24]} Kf7 {[%emt 0:02:06]} 24. a4 {[%emt 0:03:00]} h5 {[%emt 0:10:22]} 25. Rxd8 {[%emt 0:04:26]} Rxd8 {[%emt 0:00:15]} 26. Bd1 {[%emt 0:00:10]} Ng5 {[%emt 0:01:15]} 27. Kg2 {[%emt 0:00:33]} Qd7 {[%emt 0:00:57]} 28. g4 {[%emt 0:00:21]} N7e6 {[%emt 0:00:13]} 29. f3 {[%emt 0:17:38]} Nf4+ {[%emt 0:00:47]} 30. Kh2 {[%emt 0:00:49]} hxg4 {[%emt 0:00:24]} 31. fxg4 {[%emt 0:00:32]} Rh8 {[%emt 0:00:31]} 32. Kg3 {[%emt 0:00:31]} Rxh4 {[%emt 0:00:12]} 33. Kxh4 {[%emt 0:01:00]} Qd3 {[%emt 0:00:15]} 34. Qxd3 {[%emt 0:05:10]} Bf2+ {[%emt 0:00:09]} 35. Qg3 {[%emt 0:01:19]} Ng2# {[%emt 0:00:05]} 0-1